[Event "8th Fischer Heraklion-GM 2022"]
[Site "Heraklion"]
[Date "2022.04.27"]
[Round "2.1"]
[White "Korneev, Oleg"]
[Black "Vaishali R"]
[Result "1-0"]
[ECO "D02"]
[WhiteElo "2521"]
[BlackElo "2411"]
[Annotator "TA"]
[PlyCount "119"]
[EventDate "2022.04.18"]
[EventType "tourn"]
[EventCountry "GRE"]
[SourceTitle "playchess.com"]
[Source "ChessBase"]
[SourceQuality "1"]
[TimeControl "40/5400+30:1800+30"]

{[%evp 9,119,0,14,9,13,10,16,12,14,17,17,0,0,0,0,0,-1,0,31,38,33,36,22,17,19,16,37,39,54,46,73,69,72,73,73,73,74,59,63,65,108,106,125,129,129,125,134,122,126,114,114,127,129,113,131,113,212,212,214,105,122,126,131,92,177,92,214,216,304,177,797,720,1404,1122,568,0,12832,12834,12834,12835,12836,12834,12835,12835,12836,12836,12837,12837,12834,2337,12843,12843,12845,12845,12845,12846,12846,12847,12848,12848,12849,12849,27999,27999,27999,27999,27994,27994,27995,27995,27996,27996]} 1. d4 {[%emt 0:00:10]} Nf6 {[%emt 0:00:38]} 2. Nf3 {[%emt 0:00:05]} d5 {[%emt 0:00:13]} 3. Bf4 {[%emt 0:00:06]} c5 {[%emt 0:00:26]} 4. e3 {[%emt 0:02:01]} Nc6 {[%emt 0:00:12]} 5. Nbd2 {[%emt 0:00:06]} cxd4 {[%emt 0:00:48]} 6. exd4 {[%emt 0:00:04] D02: 1 d4 d5 2 Nf3 sidelines, including 2...Nf6 3 g3 and 2...Nf6 3 Bf4.} Bf5 {[%emt 0:00:04]} 7. c3 {[%emt 0:00:21]} e6 {[%emt 0:00:13]} 8. Be2 {[%emt 0:00:07] The position is equal.} Bd6 {[%emt 0:01:21]} 9. Bxd6 {[%emt 0:00:27]} Qxd6 {[%emt 0:00:02]} 10. O-O {[%emt 0:00:08]} h6 {[%emt 0:04:28] [#]} 11. Ne1 $1 $146 {[%emt 0:02:59][%mdl 8] An important novelty.} ({Predecessor:} 11. Re1 O-O 12. Nf1 Qc7 13. Ng3 Bh7 14. Bd3 Bxd3 15. Qxd3 Rab8 16. a4 a6 17. Ne5 Nxe5 18. dxe5 {½-½ (49) Caruana,F (2792)-Riazantsev,A (2634) Chess.com INT 2022}) 11... O-O {[%emt 0:12:09]} 12. Bd3 {[%emt 0:01:00]} Bxd3 {[%emt 0:02:01]} 13. Nxd3 {[%emt 0:00:03]} e5 {[%emt 0:01:10]} 14. dxe5 {[%emt 0:00:36]} Nxe5 {[%emt 0:00:04]} 15. Nxe5 {[%emt 0:00:09]} Qxe5 {[%emt 0:00:03]} 16. Re1 {[%emt 0:02:18]} Qc7 {[%emt 0:03:50]} 17. Nf1 {[%emt 0:07:06]} Qb6 {[%emt 0:13:12]} 18. Qb3 {[%emt 0:02:27]} Qxb3 {[%emt 0:21:31]} 19. axb3 {[%emt 0:00:14]} a5 {[%emt 0:00:04][%cal Od5d4]} 20. Ne3 {[%emt 0:05:23]} d4 {[%emt 0:14:56]} 21. cxd4 {[%emt 0:03:48]} Rfd8 {[%emt 0:00:04]} 22. Red1 {[%emt 0:00:52]} Nd5 {[%emt 0:00:23]} 23. g3 {[%emt 0:03:57]} (23. Rac1 $5 {[%cal Rc1c5]}) 23... b6 {[%emt 0:03:45]} 24. Rac1 {[%emt 0:01:33]} a4 {[%emt 0:05:57]} 25. Rc6 {[%emt 0:10:57]} axb3 {[%emt 0:02:50]} 26. Nxd5 {[%emt 0:00:20]} Rxd5 {[%emt 0:00:03]} 27. Rxb6 $16 {[%emt 0:00:08][%mdl 4096] Endgame KRR-KRR} Ra4 {[%emt 0:00:15]} 28. Kf1 {[%emt 0:08:06]} Raxd4 {[%emt 0:02:22]} 29. Rxd4 {[%emt 0:00:13]} Rxd4 {[%emt 0:00:03] KR-KR} 30. Ke2 {[%emt 0:00:15]} Rc4 {[%emt 0:00:21]} 31. Rxb3 {[%emt 0:02:40]} Rc2+ {[%emt 0:00:03]} 32. Ke3 {[%emt 0:00:22]} h5 {[%emt 0:01:30]} (32... Kf8 $16 33. Rb7 g6) 33. h4 $18 {[%emt 0:01:36]} g6 {[%emt 0:01:10]} 34. Rb7 {[%emt 0:14:38]} (34. Rb6 $18) 34... Kg7 $16 {[%emt 0:00:44]} 35. b4 {[%emt 0:05:05] aiming for b5.} Rb2 {[%emt 0:00:22]} 36. b5 {[%emt 0:01:25] Black must now prevent Kd4.} Kf6 {[%emt 0:02:28]} 37. b6 {[%emt 0:05:15]} (37. Kd4 $1 $18 {[%cal Rd4c5]}) 37... Ke6 {[%emt 0:00:46] [#]} (37... Ke5 $16) 38. Rb8 $1 $18 {[%emt 0:02:59]} Kf5 {[%emt 0:04:24]} (38... Ke5 $142 39. b7 Rb3+ 40. Kd2 Kf6) 39. f3 {[%emt 0:05:53] Hoping for Kd4.} Rb3+ $2 {[%emt 0:01:27]} (39... Ke5 40. b7 Rb3+ 41. Kd2 Kf6) 40. Kd4 {[%emt 0:00:00]} Rxf3 {[%emt 0:00:00]} 41. Kc4 {[%emt 0:15:21]} Rf1 {[%emt 0:16:21] [#]} 42. Rd8 $2 {[%emt 0:15:16]} (42. Ra8 $1 $18 {Threatens to win with b7.} Rb1 43. Kc5) 42... Kg4 $2 {[%emt 0:10:48][%mdl 8192]} (42... Rc1+ $11 43. Kb5 Rb1+ 44. Kc6 Kg4) 43. Rd4+ {[%emt 0:03:11]} ({Less strong is} 43. b7 Rc1+ 44. Kb5 Rb1+ 45. Kc6 Kxg3 $14) 43... Kh3 {[%emt 0:02:27]} 44. Rd3 {[%emt 0:00:10]} (44. b7 Rb1 45. Rd7 f6 $11) 44... Re1 {[%emt 0:02:36]} 45. b7 {[%emt 0:01:31]} Re8 {[%emt 0:00:03]} 46. Rb3 {[%emt 0:02:39]} Rb8 {[%emt 0:00:05]} 47. Kd5 {[%emt 0:00:32]} f5 {[%emt 0:04:41]} 48. Ke5 {[%emt 0:01:40]} Kg4 {[%emt 0:00:02]} 49. Kf6 {[%emt 0:01:01]} (49. Ke6 $142 f4 50. gxf4 Kxh4 51. Kf6) 49... f4 {[%emt 0:00:31]} 50. gxf4 {[%emt 0:00:10]} Kxh4 {[%emt 0:00:17]} 51. Kxg6 {[%emt 0:01:41]} Kg4 {[%emt 0:00:06]} 52. f5 {[%emt 0:00:35]} h4 {[%emt 0:00:21]} 53. f6 {[%emt 0:00:32]} h3 {[%emt 0:00:13]} 54. f7 {[%emt 0:00:55]} h2 {[%emt 0:00:05]} 55. Rb1 {[%emt 0:00:19]} Rxb7 {[%emt 0:02:29]} 56. Rxb7 {[%emt 0:00:14] White mates.} h1=Q {[%emt 0:00:04]} 57. Rb4+ {[%emt 0:00:25]} Kg3 {[%emt 0:00:09]} 58. f8=Q {[%emt 0:00:28]} Qc6+ {[%emt 0:00:08]} 59. Qf6 {[%emt 0:02:46]} Qe8+ {[%emt 0:00:22]} 60. Kh6 {[%emt 0:00:15] Weighted Error Value: White=0.22 (precise) /Black=0.27 (precise)} 1-0

[Event "8th Fischer Heraklion-GM 2022"]
[Site "Heraklion"]
[Date "2022.04.27"]
[Round "2.2"]
[White "Samaridis, Konstantinos"]
[Black "Kapnisis, Spyridon"]
[Result "0-1"]
[ECO "B30"]
[WhiteElo "2064"]
[BlackElo "2450"]
[Annotator "TA"]
[PlyCount "56"]
[EventDate "2022.04.18"]
[EventType "tourn"]
[EventCountry "GRE"]
[SourceTitle "playchess.com"]
[Source "ChessBase"]
[SourceQuality "1"]
[TimeControl "40/5400+30:1800+30"]

{[%evp 12,56,34,33,47,32,56,26,48,41,77,-150,-144,-144,-133,-256,-246,-329,-272,-491,-487,-489,-495,-505,-414,-780,-778,-770,-762,-968,-960,-945,-956,-931,-919,-1575,-1458,-1623,-1351,-1344,-1343,-1327,-1325,-1635,-800,-1300,-1299]} 1. e4 {[%emt 0:06:14]} c5 {[%emt 0:00:08]} 2. Nf3 {[%emt 0:00:12][%cal Bg1f3,Bf3d4,Bd4f5][%mdl 32]} Nc6 {[%emt 0:00:10]} 3. Bb5 {[%emt 0:00:12]} e6 {[%emt 0:00:19]} 4. O-O {[%emt 0:01:04]} Nge7 {[%emt 0:00:08]} 5. d4 {[%emt 0:00:20]} cxd4 {[%emt 0:00:07]} 6. Nxd4 {[%emt 0:00:09]} Ng6 {[%emt 0:00:23]} 7. Nc3 {[%emt 0:00:41]} Qc7 {[%emt 0:04:40] was the old line (7...Be7). B30: Sicilian: 2...Nc6 3 Bb5, lines without ...g6.} 8. Be3 {[%emt 0:01:17] [#]} b6 $146 {[%emt 0:09:15]} ({Predecessor:} 8... a6 9. Be2 b5 10. f4 Bb7 11. Bh5 Rc8 12. f5 Nxd4 13. Bxd4 Bc5 14. fxg6 hxg6 15. Bf3 Qxh2+ {1-0 (40) Shirov,A (2713)-Shariyazdanov,A (2568) Riga 2014}) 9. Re1 {[%emt 0:03:17][%cal Od4f5]} Be7 {[%emt 0:08:45] [#] White has an edge.} 10. Nf5 $1 {[%emt 0:05:57]} O-O {[%emt 0:03:11]} ({Not} 10... exf5 11. exf5 Nge5 12. f4 $16) 11. Nd5 $2 {[%emt 0:02:29]} exd5 $17 {[%emt 0:01:11]} 12. exd5 {[%emt 0:00:08]} Bf6 {[%emt 0:00:43][%cal Of6b2]} 13. d6 {[%emt 0:07:20]} (13. dxc6 $17 dxc6 14. Bd3) 13... Qd8 $19 {[%emt 0:02:16]} 14. Qf3 {[%emt 0:03:40]} Bb7 {[%emt 0:05:30]} 15. g3 $2 {[%emt 0:06:43]} (15. c3) 15... Rb8 {[%emt 0:02:50] aiming for ...Nce5.} 16. Bxc6 {[%emt 0:02:53]} Bxc6 {[%emt 0:02:06]} 17. Qh5 {[%emt 0:01:51]} Re8 {[%emt 0:06:26]} 18. Bh6 {[%emt 0:04:03]} (18. Bd4 $142 Re6 19. h4) 18... gxh6 {[%emt 0:05:39] Black is clearly winning.} 19. Nxh6+ {[%emt 0:00:18]} Kg7 {[%emt 0:00:14]} 20. Re7 {[%emt 0:03:49]} Bxe7 {[%emt 0:05:43]} 21. Nf5+ {[%emt 0:05:37]} Kh8 {[%emt 0:01:47][%cal Bg7h8,Bh8g8,Bg8f8][%mdl 32]} 22. dxe7 {[%emt 0:07:27]} Rxe7 {[%emt 0:00:16] And now ...Re5 would win.} 23. Nd6 {[%emt 0:06:32]} Qc7 {[%emt 0:01:52]} 24. Qd1 {[%emt 0:06:09] [#]} Rbe8 $1 {[%emt 0:01:03][%cal Oc7d6]} 25. Qd4+ {[%emt 0:00:14]} Kg8 {[%emt 0:00:11] ( -> ...Re1+)} 26. f4 {[%emt 0:02:47]} Ba8 {[%emt 0:01:35][%cal Oc7c2]} 27. Nf5 {[%emt 0:02:21]} Qc5 {[%emt 0:00:24]} 28. Nh6+ {[%emt 0:00:05]} Kf8 {[%emt 0:00:05] White got outplayed after the opening.  Weighted Error Value: White=1.09/Black=0.32} 0-1

[Event "8th Fischer Heraklion-GM 2022"]
[Site "Heraklion"]
[Date "2022.04.27"]
[Round "2.3"]
[White "Jahncke, Giso"]
[Black "Materia, Marco"]
[Result "1/2-1/2"]
[ECO "E07"]
[WhiteElo "2326"]
[BlackElo "2398"]
[Annotator "TA"]
[PlyCount "65"]
[EventDate "2022.04.18"]
[EventType "tourn"]
[EventCountry "GRE"]
[SourceTitle "playchess.com"]
[Source "ChessBase"]
[SourceQuality "1"]
[TimeControl "40/5400+30:1800+30"]

{[%evp 15,65,22,18,0,3,0,8,-7,0,-20,-10,-16,-13,-13,-20,-18,-8,-30,-21,-24,-20,-27,-9,-8,0,0,0,0,0,0,0,0,0,0,0,0,0,0,0,0,0,0,0,0,0,0,0,0,0,0,0,0]} 1. d4 {[%emt 0:00:02]} Nf6 {[%emt 0:00:05]} 2. Nf3 {[%emt 0:00:05]} e6 {[%emt 0:00:03]} 3. g3 {[%emt 0:00:05]} d5 {[%emt 0:00:05]} 4. Bg2 {[%emt 0:00:04]} Be7 {[%emt 0:00:06]} 5. O-O {[%emt 0:00:06]} O-O {[%emt 0:00:04]} 6. b3 {[%emt 0:00:03]} b6 {[%emt 0:01:48]} 7. c4 {[%emt 0:00:16]} c6 {[%emt 0:00:25]} 8. Bb2 {[%emt 0:02:07]} Nbd7 {[%emt 0:01:55]} 9. Ne5 {[%emt 0:02:44] E07: Closed Catalan: Main Line (5 Nf3 0-0 6 0-0 Nbd7).} Nxe5 {[%emt 0:04:12]} 10. dxe5 {[%emt 0:00:08]} Nd7 {[%emt 0:01:01]} 11. cxd5 {[%emt 0:01:25]} cxd5 {[%emt 0:01:47]} 12. e4 {[%emt 0:04:49]} dxe4 {[%emt 0:06:28]} 13. Bxe4 {[%emt 0:13:14] [#]} Ba6 $146 {[%emt 0:03:52][%cal Od7c5]} ({Predecessor:} 13... Rb8 14. Qe2 Nc5 15. Rd1 Qc7 16. Rc1 Qd7 17. Nc3 Nxe4 18. Nxe4 Bb7 19. Qg4 Bxe4 20. Qxe4 Bc5 21. b4 Qd2 22. bxc5 Qxb2 23. c6 Qb5 24. Qd4 {½-½ (24) Loviscek,M-Knapic,A Rogaska Slatina 1998}) 14. Bxa8 {[%emt 0:08:57]} Bxf1 {[%emt 0:00:29]} 15. Qxf1 {[%emt 0:09:04] [#] Threatens to win with Be4.} Qxa8 {[%emt 0:00:11]} 16. Nd2 {[%emt 0:00:09]} Rd8 {[%emt 0:11:11]} 17. Rd1 {[%emt 0:01:36]} Nc5 {[%emt 0:02:26] White must now prevent ...Qd5.} 18. Nc4 {[%emt 0:00:14]} Rxd1 {[%emt 0:03:16]} 19. Qxd1 {[%emt 0:00:09] The position is equal.} Qe4 {[%emt 0:00:58]} 20. Ba3 {[%emt 0:13:11]} h6 {[%emt 0:08:17]} 21. f3 {[%emt 0:00:54]} (21. h4 {is interesting.} b5 22. Nd6 Qxe5 23. Nc8) 21... Qb7 {[%emt 0:04:50]} 22. Bxc5 {[%emt 0:01:43]} Bxc5+ {[%emt 0:00:30]} 23. Kg2 {[%emt 0:00:05]} Be7 {[%emt 0:03:04]} 24. Qd4 {[%emt 0:03:02]} Qc6 {[%emt 0:05:52]} 25. a4 {[%emt 0:03:36]} g6 {[%emt 0:05:42]} 26. g4 {[%emt 0:04:11]} b5 {[%emt 0:10:11]} 27. axb5 {[%emt 0:08:00]} Qxb5 {[%emt 0:00:13]} 28. Qxa7 {[%emt 0:00:17]} (28. Qe3 {is more complex.} Bc5 29. Qc3 Kg7 30. Qa5) 28... Qxb3 {[%emt 0:00:06]} 29. Qxe7 {[%emt 0:00:06]} Qxc4 $11 {[%emt 0:00:06] KQ-KQ} 30. Qd8+ {[%emt 0:00:10]} Kg7 {[%emt 0:00:13]} 31. Qf6+ {[%emt 0:00:06]} Kg8 {[%emt 0:00:12]} 32. Qd8+ {[%emt 0:00:06]} Kg7 {[%emt 0:02:02]} 33. Qf6+ {[%emt 0:00:06] An interesting draw.  Weighted Error Value: White=0.03 (flawless) /Black=0.02 (flawless)} 1/2-1/2

[Event "8th Fischer Heraklion-GM 2022"]
[Site "Heraklion"]
[Date "2022.04.27"]
[Round "2.4"]
[White "Milikow, Yoav"]
[Black "Nikolaidis, Ioannis"]
[Result "1-0"]
[ECO "D11"]
[WhiteElo "2383"]
[BlackElo "2536"]
[Annotator "TA"]
[PlyCount "109"]
[EventDate "2022.04.18"]
[EventType "tourn"]
[EventCountry "GRE"]
[SourceTitle "playchess.com"]
[Source "ChessBase"]
[SourceQuality "1"]
[TimeControl "40/5400+30:1800+30"]

{[%evp 9,109,2,8,8,31,22,19,30,27,19,33,17,31,39,37,35,52,54,115,104,111,64,129,131,176,176,177,176,176,176,184,177,191,182,174,188,175,183,187,136,141,144,182,179,180,184,213,198,187,187,350,343,373,365,380,373,371,364,354,318,402,404,581,586,579,571,564,550,531,456,716,670,1606,1341,1385,1077,1122,1224,1242,1233,1136,1108,1060,1018,986,959,975,947,910,907,900,807,865,838,824,799,734,675,3633,3220,2365,2301]} 1. d4 {[%emt 0:00:16]} d5 {[%emt 0:00:31]} 2. c4 {[%emt 0:00:08]} c6 {[%emt 0:00:50]} 3. Nf3 {[%emt 0:00:18]} Nf6 {[%emt 0:00:26]} 4. g3 {[%emt 0:00:32][%cal Bg2g3,Bg3g4,Bg4g5][%mdl 32]} Bf5 {[%emt 0:01:40]} 5. Nc3 {[%emt 0:01:41]} e6 {[%emt 0:00:48]} 6. Nh4 {[%emt 0:01:19] D11: Slav Defence: 3 Nf3 sidelines and 3...Nf6 4 e3 Bg4.} Bg4 {[%emt 0:02:19]} 7. h3 {[%emt 0:00:50]} Bh5 {[%emt 0:00:25]} 8. g4 {[%emt 0:01:04] The position is equal. 8.Qb3 is the modern continuation.} Bg6 {[%emt 0:06:30]} 9. Nxg6 {[%emt 0:00:57]} hxg6 {[%emt 0:00:04]} 10. g5 {[%emt 0:00:23]} Ne4 {[%emt 0:11:32]} 11. Nxe4 {[%emt 0:00:28]} dxe4 {[%emt 0:00:04] [#]} 12. Bg2 $146 {[%emt 0:03:13]} ({Predecessor:} 12. a3 Be7 13. Qb3 Qb6 14. Qc3 Nd7 15. Bf4 Rh4 16. e3 c5 17. d5 e5 18. Bg3 Rh7 19. Bxe5 Bxg5 20. O-O-O O-O-O 21. Rd2 f6 {½-½ (21) Cornette,M (2591)-Kuczynski,R (2487) Germany 2015}) 12... Rh4 {[%emt 0:04:55]} 13. Qb3 $36 {[%emt 0:06:16][%mdl 2048] White is more active.} Nd7 {[%emt 0:33:10]} (13... Qxd4 $14 14. Qxb7 Qd7 15. Qxa8 Bb4+ 16. Bd2 Qxd2+ 17. Kf1 Bd6 18. Qxa7 Rf4) 14. Qg3 $16 {[%emt 0:05:19]} Rh5 {[%emt 0:14:37]} 15. Bxe4 {[%emt 0:05:40]} (15. Be3 $16) 15... Nb6 {[%emt 0:06:07]} ({Better is} 15... Qb6 $1 $14) 16. Qd3 {[%emt 0:06:16] White is more active.} Rxg5 {[%emt 0:03:24]} 17. Bxg5 {[%emt 0:00:43]} Qxg5 {[%emt 0:00:04]} 18. c5 {[%emt 0:01:26] [#] Threatens to win with h4.} Nd7 {[%emt 0:00:06]} 19. h4 {[%emt 0:03:55]} Qf6 {[%emt 0:04:54]} 20. O-O-O {[%emt 0:02:06]} O-O-O {[%emt 0:00:47][%cal Od7c5]} 21. b4 {[%emt 0:08:24]} Qf4+ {[%emt 0:05:10]} 22. Qe3 {[%emt 0:05:52]} Qxe3+ {[%emt 0:00:03]} 23. fxe3 {[%emt 0:00:07][%cal Bf2e3,Be3e4,Be4e5][%mdl 32]} Be7 {[%emt 0:00:04]} 24. Rdf1 {[%emt 0:01:21]} ({White should play} 24. Bf3 $18) 24... f5 {[%emt 0:00:29]} 25. Bf3 {[%emt 0:02:44]} Rh8 {[%emt 0:00:27]} 26. h5 {[%emt 0:02:02]} g5 {[%emt 0:01:07] [#]} 27. e4 $1 {[%emt 0:01:15]} g4 {[%emt 0:01:49]} 28. Bg2 {[%emt 0:00:20]} Bg5+ {[%emt 0:00:16]} 29. Kc2 {[%emt 0:00:45]} f4 {[%emt 0:00:05]} (29... Re8 {keeps fighting.} 30. Kd3 (30. exf5 exf5 31. e4 fxe4 $18) 30... Bh6) 30. e5 $18 {[%emt 0:00:44]} Nb8 {[%emt 0:01:03]} 31. Be4 {[%emt 0:01:13]} Na6 {[%emt 0:00:15]} 32. Rfg1 {[%emt 0:04:02]} g3 {[%emt 0:00:28]} 33. Kc3 {[%emt 0:01:34]} Rd8 {[%emt 0:01:15]} 34. e3 {[%emt 0:01:21]} Nc7 {[%emt 0:00:56]} 35. a4 {[%emt 0:00:27] Against Nb5+} fxe3 {[%emt 0:00:07]} (35... Na6 {was called for.} 36. b5 cxb5 37. axb5 Nc7) 36. Rxg3 {[%emt 0:00:14] White is clearly winning.} Bh6 {[%emt 0:00:01]} 37. Rf3 {[%emt 0:01:08]} Bg5 {[%emt 0:01:25]} 38. Rg1 {[%emt 0:00:51]} Bh6 {[%emt 0:00:10]} 39. Rf7 {[%emt 0:01:43]} a5 {[%emt 0:00:52]} (39... e2 $142 40. Rf3 Na6) 40. bxa5 {[%emt 0:00:00]} Rd7 {[%emt 0:00:00]} 41. Rf8+ {[%emt 0:03:15]} Rd8 {[%emt 0:00:37]} 42. Rgf1 {[%emt 0:00:56]} Rxf8 {[%emt 0:03:40]} 43. Rxf8+ {[%emt 0:00:03][%mdl 4096] Endgame KRB-KBN} Kd7 {[%emt 0:00:01]} 44. Kd3 {[%emt 0:01:33] Strongly threatening Rb8.} Na6 {[%emt 0:02:33] Against Rb8} 45. Rf7+ {[%emt 0:03:43]} Kc8 {[%emt 0:00:02]} 46. Ke2 {[%emt 0:01:15] Bc2 is the strong threat.} Nb4 {[%emt 0:00:19] Prevents Bc2.} 47. Rf1 {[%emt 0:03:10]} Na2 {[%emt 0:03:25]} 48. Kd3 {[%emt 0:01:28]} Bg5 {[%emt 0:02:04]} 49. Rg1 {[%emt 0:02:21]} Bh6 {[%emt 0:00:48]} 50. Ra1 {[%emt 0:00:20]} Nb4+ {[%emt 0:00:23]} 51. Kc3 {[%emt 0:00:37]} e2 {[%emt 0:04:32]} 52. Re1 {[%emt 0:00:30]} Na2+ {[%emt 0:00:15]} 53. Kc2 {[%emt 0:00:48]} Nc1 {[%emt 0:00:10]} 54. Bd3 {[%emt 0:01:37]} Be3 {[%emt 0:00:16]} 55. Bxe2 {[%emt 0:00:15] Weighted Error Value: White=0.08 (flawless) /Black=0.25 (precise)} 1-0

[Event "8th Fischer Heraklion-GM 2022"]
[Site "Heraklion"]
[Date "2022.04.27"]
[Round "2.5"]
[White "Mitsis, Georgios"]
[Black "Szwed, Jacek"]
[Result "0-1"]
[ECO "A43"]
[WhiteElo "2344"]
[BlackElo "2360"]
[Annotator "TA"]
[PlyCount "90"]
[EventDate "2022.04.18"]
[EventType "tourn"]
[EventCountry "GRE"]
[SourceTitle "playchess.com"]
[Source "ChessBase"]
[SourceQuality "1"]
[TimeControl "40/5400+30:1800+30"]

{[%evp 9,90,61,67,35,39,41,50,51,72,50,85,88,78,72,77,30,36,22,2,-48,-29,-48,-43,-58,-36,-33,-41,-72,0,0,0,0,0,0,18,-10,-16,-14,-21,-21,-13,-13,-11,-117,-13,-39,-24,-51,-52,-49,-10,-9,0,0,0,0,0,0,0,0,0,0,0,0,0,0,0,0,0,0,0,0,0,0,0,0,0,-610,-587,-767,-718,-895,-856]} 1. d4 {[%emt 0:01:07]} e6 {[%emt 0:00:05]} 2. c4 {[%emt 0:00:22]} c5 {[%emt 0:00:06]} 3. d5 {[%emt 0:00:27]} exd5 {[%emt 0:00:08]} 4. cxd5 {[%emt 0:00:07]} d6 {[%emt 0:00:04]} 5. Nc3 {[%emt 0:00:27]} g6 {[%emt 0:00:15]} 6. Bf4 {[%emt 0:04:03] A43: Schmid Benoni.} a6 {[%emt 0:00:14]} 7. Qa4+ {[%emt 0:03:42]} Qd7 {[%emt 0:12:14]} 8. Qxd7+ {[%emt 0:02:44] White is slightly better.} Kxd7 {[%emt 0:05:50]} 9. Na4 {[%emt 0:16:05] aiming for Nb6+.} Kd8 {[%emt 0:03:51]} 10. Nb6 {[%emt 0:02:58]} Ra7 {[%emt 0:00:01]} 11. Nf3 {[%emt 0:41:17]} Kc7 {[%emt 0:15:16] [#]} 12. Na4 $146 {[%emt 0:02:01]} (12. Nxc8 $16 Kxc8 13. e4) ({Predecessor:} 12. Nxc8 Kxc8 13. Ng5 b6 14. g3 h6 15. Bh3+ Kd8 16. Ne4 Kc7 17. b4 g5 18. bxc5 gxf4 19. cxb6+ Kxb6 {1-0 (58) Grigore,G (2410)-Giurumia,S (2235) Cologne 1992}) 12... Bh6 $11 {[%emt 0:04:28]} 13. Bg3 {[%emt 0:01:49] Ne5 is the strong threat.} Nd7 {[%emt 0:02:38] Against Ne5} 14. b4 {[%emt 0:02:54]} ({White should play} 14. h4 $11) 14... cxb4 $15 {[%emt 0:03:07]} 15. e3 {[%emt 0:00:38] Strongly threatening Rc1+.} b5 {[%emt 0:00:02]} 16. Rc1+ {[%emt 0:00:44]} Kd8 {[%emt 0:00:25]} 17. Nd4 {[%emt 0:09:06]} Bb7 {[%emt 0:00:45]} 18. Nb2 {[%emt 0:00:27]} Bg7 {[%emt 0:16:45]} (18... Ne7 $17) 19. Bxd6 $11 {[%emt 0:04:29]} Bxd5 {[%emt 0:04:40]} 20. Bxb4 {[%emt 0:01:21]} Bxd4 {[%emt 0:21:27]} 21. exd4 {[%emt 0:00:03]} a5 {[%emt 0:00:01]} 22. Bd6 {[%emt 0:01:04]} (22. Bd2 $5 {[%cal Rf1b5]}) 22... Ngf6 {[%emt 0:00:34] White must now prevent ...Re8+.} 23. f3 {[%emt 0:01:12]} Re8+ {[%emt 0:00:01]} 24. Kf2 {[%emt 0:00:05]} Re6 {[%emt 0:00:47]} 25. Bc5 {[%emt 0:00:59] A strong pair of Bishops.} Rb7 {[%emt 0:02:30]} 26. Be2 {[%emt 0:01:03]} (26. a3 $11 {keeps the balance.}) 26... Rc6 {[%emt 0:01:19] Black is more active.} (26... Bxa2 $17 27. Ra1 Nxc5 28. dxc5 {[#]} Nd5 $1) 27. a4 {[%emt 0:01:25]} Nxc5 {[%emt 0:00:31]} 28. dxc5 {[%emt 0:00:29]} bxa4 {[%emt 0:02:43]} 29. Nxa4 {[%emt 0:00:04]} Nd7 {[%emt 0:00:10] Prevents Nb6.} (29... Bb3 $5 {[%cal Rb3a4]} 30. Nb6 Nd7 $15) 30. Rb1 {[%emt 0:01:41]} Nxc5 {[%emt 0:03:52] And now ...Rxb1 would win.} (30... Rcc7 {feels hotter.} 31. Bb5 Ba2 32. Rb2 Nxc5 33. Rd1+ Nd7) 31. Rbd1 {[%emt 0:00:04]} Nxa4 {[%emt 0:00:37]} ({Resist} 31... Rd7 32. Bb5 Nxa4 33. Bxa4 $16) 32. Rxd5+ {[%emt 0:00:05]} Ke7 {[%emt 0:00:09]} 33. Rxa5 {[%emt 0:00:09]} (33. Re1 {is more complex.} Rc2 34. Kf1 Kf6 35. Bd1) 33... Nc3 {[%emt 0:00:04]} 34. Bd3 {[%emt 0:00:28]} Rd6 {[%emt 0:00:26]} 35. Re1+ {[%emt 0:00:09]} Kf6 {[%emt 0:00:38]} 36. Bc4 {[%emt 0:00:22]} Rd2+ {[%emt 0:00:52]} 37. Kg3 {[%emt 0:00:08]} Rd4 {[%emt 0:00:41]} 38. Rc5 {[%emt 0:01:00]} Na4 {[%emt 0:00:41]} 39. Rc6+ {[%emt 0:00:08]} Kg7 {[%emt 0:00:05]} 40. Ra1 {[%emt 0:00:00]} Nb2 {[%emt 0:00:00]} 41. Rb1 {[%emt 0:06:04]} h5 {[%emt 0:06:03][%cal Ob2d1] Hoping for ...Nd1!} 42. h4 {[%emt 0:00:08]} Rb4 {[%emt 0:05:18]} 43. Rc7 {[%emt 0:00:40][%mdl 8192]} (43. Bf1 $11) 43... Rbxc4 $19 {[%emt 0:00:29] Black is clearly winning.} 44. Rxc4 {[%emt 0:00:15]} Nxc4 {[%emt 0:00:02]} 45. Rb4 {[%emt 0:00:06] [#]} Ne3 $1 {[%emt 0:01:40][%mdl 512] Weighted Error Value: White=0.40/Black=0.09 (flawless)} 0-1